fUST/lending_fUST_20240517
["ID","MTS","AMOUNT","RATE_DAILY","PERIOD"]
[327199091,1715893848239,-500.0,0.00016712,2]
[327199092,1715893848248,-696.0,0.00016712,2]
[327199093,1715893848257,-3299.35,0.00016712,2]
[327199094,1715893848266,-2345.26,0.00016712,2]
[327199095,1715893848275,-5713.66,0.00016712,2]
[327199096,1715893848284,-567.85,0.00016712,2]
[327199097,1715893848294,-500.0,0.00016712,2]
[327199098,1715893848303,-11240.46,0.00016712,2]
[327199099,1715893848312,-500.0,0.00016712,2]
[327199100,1715893848322,-2075.36,0.00016712,2]
[327199101,1715893848332,-500.0,0.00016712,2]
[327199102,1715893848341,-727.68,0.00016712,2]
[327199103,1715893848350,-1334.2,0.00016712,2]
[327199104,1715893848359,-545.67923362,0.00016712,2]
[327199105,1715893848368,-1876.86,0.00016712,2]
[327199106,1715893848377,-1323.12,0.00016712,2]
[327199107,1715893848387,-2130.38,0.00016712,2]
[327199108,1715893848396,-500.0,0.00016712,2]
[327199109,1715893848405,-500.0,0.00016712,2]
[327199110,1715893848414,-849.1,0.00016712,2]
[327199111,1715893848424,-767.31,0.00016712,2]
[327199112,1715893848433,-791.95,0.00016712,2]
[327199113,1715893848442,-500.0,0.00016712,2]
[327199114,1715893848451,-623.66,0.00016712,2]
[327199115,1715893848461,-2878.76,0.00016712,2]
[327199116,1715893848470,-500.0,0.00016712,2]
[327199117,1715893848479,-500.0,0.00016712,2]
[327199118,1715893848488,-1916.2,0.00016712,2]
[327199119,1715893848498,-1356.78,0.00016712,2]
[327199120,1715893848507,-1093.69,0.00016712,2]
[327199121,1715893848516,-4019.74,0.00016712,2]
[327199122,1715893848525,-500.0,0.00016712,2]
[327199123,1715893848535,-500.0,0.00016712,2]
[327199124,1715893848544,-475.5,0.00016743,2]
[327199125,1715893848553,-150.0,0.00016743,2]
[327199126,1715893848562,-475.5,0.00016842,2]
[327199127,1715893848572,-150.0,0.00016842,2]
[327199128,1715893848582,-475.5,0.00016941,2]
[327199129,1715893848592,-150.0,0.00016941,2]
[327199130,1715893848601,-2868.9,0.00016983,2]
[327199131,1715893848611,-861.55431097,0.00016985,2]
[327199132,1715893848620,-2868.9,0.00016985,2]
[327199133,1715893848630,-2868.9,0.00016985,2]
[327199134,1715893848639,-2868.9,0.00016985,2]
[327199135,1715893848648,-2868.9,0.00016985,2]
[327199136,1715893848657,-2868.9,0.00016985,2]
[327199137,1715893848666,-2868.9,0.00016985,2]
[327199138,1715893848676,-2868.9,0.00016985,2]
[327199139,1715893848685,-2869.10985405,0.00016985,2]
[327199140,1715893848694,-500.0,0.00016986,2]
[327199141,1715893848704,-500.0,0.00016986,2]
[327199142,1715893848713,-500.0,0.00016986,2]
[327199143,1715893848722,-500.0,0.00016986,2]
[327199144,1715893848731,-500.0,0.00016986,2]
[327199145,1715893848741,-500.0,0.00016986,2]
[327199146,1715893848749,-514.24005719,0.00016986,2]
[327199147,1715893848758,-500.0,0.00016986,2]
[327199148,1715893848768,-775.76,0.00016986,2]
[327199149,1715893848778,-500.0,0.00016986,2]
[327199150,1715893848788,-500.0,0.00016986,2]
[327199151,1715893848797,-500.0,0.00016986,2]
[327199152,1715893848808,-500.0,0.00016986,2]
[327199153,1715893848818,-468.87999052,0.00016986,2]
[327199154,1715893848828,-500.0,0.00016986,2]
[327199155,1715893848837,-500.0,0.00016986,2]
[327199156,1715893848846,-500.0,0.00016986,2]
[327199157,1715893848857,-500.0,0.00016986,2]
[327199158,1715893848871,-541.91,0.00016986,2]
[327199159,1715893848881,-571.96,0.00016986,2]
[327199160,1715893848893,-500.0,0.00016986,2]
[327199161,1715893848904,-1062.97,0.00016986,2]
[327199162,1715893848915,-793.27,0.00016986,2]
[327199163,1715893848925,-500.0,0.00016986,2]
[327199164,1715893848935,-606.48,0.00016986,2]
[327199165,1715893848946,-500.0,0.00016986,2]
[327199166,1715893848956,-551.97,0.00016986,2]
[327199167,1715893848967,-1159.47,0.00016986,2]
[327199168,1715893848977,-517.58764021,0.00016986,2]
[327199169,1715893848989,-500.0,0.00016986,2]
[327199170,1715893849000,-500.0,0.00016986,2]
[327199171,1715893849010,-814.06,0.00016986,2]
[327199172,1715893849019,-957.24,0.00016986,2]
[327199173,1715893849028,-665.34,0.00016986,2]
[327199174,1715893849037,-500.0,0.00016986,2]
[327199175,1715893849047,-500.0,0.00016986,2]
[327199176,1715893849055,-1243.34,0.00016986,2]
[327199177,1715893849064,-500.0,0.00016986,2]
[327199178,1715893849073,-1381.92,0.00016986,2]
[327199179,1715893849083,-500.0,0.00016986,2]
[327199180,1715893849092,-500.0,0.00016986,2]
[327199181,1715893849102,-1307.96,0.00016986,2]
[327199182,1715893849111,-500.0,0.00016986,2]
[327199183,1715893849120,-500.0,0.00016986,2]
[327199184,1715893849129,-237.19386121,0.00016986,2]
[327199185,1715893849138,-409.71603581,0.00016986,2]
[327199186,1715893849147,-745.61,0.00016986,2]
[327199187,1715893849156,-500.0,0.00016986,2]
[327199188,1715893849165,-500.0,0.00016986,2]
[327199189,1715893849175,-925.69,0.00016986,2]
[327199190,1715893849184,-517.18206219,0.00016986,2]
[327199191,1715893849193,-1805.2,0.00016986,2]
[327199192,1715893849203,-623.21,0.00016986,2]
[327199193,1715893849212,-1557.57,0.00016986,2]
[327199194,1715893849222,-842.56,0.00016986,2]
[327199195,1715893849230,-500.0,0.00016986,2]
[327199196,1715893849240,-500.0,0.00016986,2]
[327199197,1715893849249,-500.0,0.00016986,2]
[327199198,1715893849258,-500.0,0.00016986,2]
[327199199,1715893849267,-500.0,0.00016986,2]
[327199200,1715893849276,-500.0,0.00016986,2]
[327199201,1715893849285,-3080.69,0.00016986,2]
[327199202,1715893849294,-624.55,0.00016986,2]
[327199203,1715893849303,-1436.84,0.00016986,2]
[327199204,1715893849313,-2315.76,0.00016986,2]
[327199205,1715893849322,-1693.51,0.00016986,2]
[327199206,1715893849332,-1089.16,0.00016986,2]
[327199207,1715893849342,-500.0,0.00016986,2]
[327199208,1715893849351,-808.15,0.00016986,2]
[327199209,1715893849360,-767.13,0.00016986,2]
[327199210,1715893849369,-500.0,0.00016986,2]
[327199211,1715893849378,-684.24,0.00016986,2]
[327199212,1715893849387,-500.0,0.00016986,2]
[327199213,1715893849396,-500.0,0.00016986,2]
[327199214,1715893849405,-2645.94,0.00016986,2]
[327199215,1715893849414,-2044.8,0.00016986,2]
[327199216,1715893849423,-500.0,0.00016986,2]
[327199217,1715893849432,-500.0,0.00016986,2]
[327199218,1715893849441,-500.0,0.00016986,2]
[327199219,1715893849450,-2921.84,0.00016986,2]
[327199220,1715893849459,-500.0,0.00016986,2]
[327199221,1715893849468,-506.82,0.00016986,2]
[327199222,1715893849477,-1343.18,0.00016986,2]
[327199223,1715893849486,-572.69,0.00016986,2]
[327199224,1715893849496,-500.0,0.00016986,2]
[327199225,1715893849505,-500.0,0.00016986,2]
[327199226,1715893849514,-500.0,0.00016986,2]
[327199227,1715893849523,-500.0,0.00016986,2]
[327199228,1715893849532,-501.91,0.00016986,2]
[327199229,1715893849541,-500.0,0.00016986,2]
[327199230,1715893849550,-500.0,0.00016986,2]
[327199231,1715893849559,-500.0,0.00016986,2]
[327199232,1715893849568,-500.0,0.00016986,2]
[327199233,1715893849578,-1520.41,0.00016986,2]
[327199234,1715893849586,-500.0,0.00016986,2]
[327199235,1715893849595,-500.0,0.00016986,2]
[327199236,1715893849604,-552.26,0.00016986,2]
[327199237,1715893849614,-500.0,0.00016986,2]
[327199238,1715893849623,-500.0,0.00016986,2]
[327199239,1715893849631,-725.64,0.00016986,2]
[327199240,1715893849640,-500.0,0.00016986,2]
[327199241,1715893849649,-500.0,0.00016986,2]
[327199242,1715893849658,-3292.07,0.00016986,2]
[327199243,1715893849667,-500.0,0.00016986,2]
[327199244,1715893849676,-500.0,0.00016986,2]
[327199245,1715893849685,-2149.14,0.00016986,2]
[327199246,1715893849695,-1674.36,0.00016986,2]
[327199247,1715893849704,-500.0,0.00016986,2]
[327199248,1715893849712,-508.85,0.00016986,2]
[327199249,1715893849721,-1326.49,0.00016986,2]
[327199250,1715893849730,-500.0,0.00016986,2]
[327199251,1715893849739,-1774.24,0.00016986,2]
[327199252,1715893849748,-500.0,0.00016986,2]
[327199253,1715893849757,-910.33,0.00016986,2]
[327199254,1715893849766,-2097.89,0.00016986,2]
[327199255,1715893849775,-617.63236016,0.00016986,2]
[327199256,1715893849784,-772.63,0.00016986,2]
[327199257,1715893849793,-236.17141065,0.00016986,2]
[327199258,1715893849802,-500.0,0.00016986,2]
[327199259,1715893849811,-1957.51,0.00016986,2]
[327199260,1715893849820,-612.69,0.00016986,2]
[327199261,1715893849829,-500.0,0.00016986,2]
[327199262,1715893849838,-3016.8,0.00016986,2]
[327199263,1715893849847,-500.0,0.00016986,2]
[327199264,1715893849859,-798.31,0.00016986,2]
[327199265,1715893849869,-500.0,0.00016986,2]
[327199266,1715893849878,-500.0,0.00016986,2]
[327199267,1715893849887,-1056.67,0.00016986,2]
[327199268,1715893849896,-500.0,0.00016986,2]
[327199269,1715893849906,-4331.77,0.00016986,2]
[327199270,1715893849915,-500.0,0.00016986,2]
[327199271,1715893849925,-562.22,0.00016986,2]
[327199272,1715893849936,-500.0,0.00016986,2]
[327199273,1715893849944,-500.0,0.00016986,2]
[327199274,1715893849954,-6805.39,0.00016986,2]
[327199275,1715893849963,-48156.74,0.00016986,2]
[327199276,1715893849972,-500.0,0.00016986,2]
[327199277,1715893849981,-2532.53,0.00016986,2]
[327199278,1715893849990,-500.0,0.00016986,2]
[327199279,1715893849999,-5194.73,0.00016986,2]
[327199280,1715893850009,-619.94,0.00016986,2]
[327199281,1715893850018,-500.0,0.00016986,2]
[327199282,1715893850027,-500.0,0.00016986,2]
[327199283,1715893850036,-500.0,0.00016986,2]
[327199284,1715893850046,-500.0,0.00016986,2]
[327199285,1715893850055,-412.8092417,0.00016986,2]
[327199286,1715893850064,-500.0,0.00016986,2]
[327199287,1715893850073,-832.53,0.00016986,2]
[327199288,1715893850083,-1967.03,0.00016986,2]
[327199289,1715893850092,-500.0,0.00016986,2]
[327199290,1715893850101,-11951.4,0.00016986,2]
[327199291,1715893850110,-1852.23,0.00016986,2]
[327199292,1715893850119,-1325.37,0.00016986,2]
[327199293,1715893850128,-4424.41,0.00016986,2]
[327199294,1715893850137,-696.0,0.00016986,2]
[327199295,1715893850146,-500.0,0.00016986,2]
[327199296,1715893850155,-3299.35,0.00016986,2]
[327199297,1715893850163,-2345.26,0.00016986,2]
[327199298,1715893850172,-5713.66,0.00016986,2]
[327199299,1715893850181,-567.85,0.00016986,2]
[327199300,1715893850190,-500.0,0.00016986,2]
[327199301,1715893850199,-11240.46,0.00016986,2]
[327199302,1715893850207,-500.0,0.00016986,2]
[327199303,1715893850216,-2075.36,0.00016986,2]
[327199304,1715893850225,-500.0,0.00016986,2]
[327199305,1715893850233,-727.68,0.00016986,2]
[327199306,1715893850242,-1334.2,0.00016986,2]
[327199307,1715893850251,-1876.86,0.00016986,2]
[327199308,1715893850260,-1323.12,0.00016986,2]
[327199309,1715893850269,-2130.38,0.00016986,2]
[327199310,1715893850278,-500.0,0.00016986,2]
[327199311,1715893850287,-500.0,0.00016986,2]
[327199312,1715893850295,-849.1,0.00016986,2]
[327199313,1715893850304,-767.31,0.00016986,2]
[327199314,1715893850313,-791.95,0.00016986,2]
[327199315,1715893850322,-623.66,0.00016986,2]
[327199316,1715893850333,-2878.76,0.00016986,2]
[327199317,1715893850342,-176.87743893,0.00016986,2]
[327199318,1715893850351,-500.0,0.00016986,2]
[327199319,1715893850360,-1916.2,0.00016986,2]
[327199320,1715893850371,-1356.78,0.00016986,2]
[327199321,1715893850380,-1093.69,0.00016986,2]
[327199322,1715893850391,-4019.74,0.00016986,2]
[327199323,1715893850400,-500.0,0.00016986,2]
[327199324,1715893850409,-500.0,0.00016986,2]
[327199325,1715893850420,-475.5,0.00017039,2]
[327199326,1715893850429,-150.0,0.00017039,2]
[327199327,1715893850438,-475.5,0.00017138,2]
[327199328,1715893850447,-150.0,0.00017138,2]
[327199329,1715893850456,-475.5,0.00017237,2]
[327199330,1715893850466,-150.0,0.00017237,2]
[327199331,1715893850475,-500.0,0.0001726,2]
[327199332,1715893850484,-164.56010551,0.0001726,2]
[327199333,1715893850493,-500.0,0.0001726,2]
[327199334,1715893850502,-500.0,0.0001726,2]
[327199335,1715893850512,-500.0,0.0001726,2]
[327199336,1715893850521,-500.0,0.0001726,2]
[327199337,1715893850531,-500.0,0.0001726,2]
[327199338,1715893850540,-775.76,0.0001726,2]
[327199339,1715893850548,-500.0,0.0001726,2]
[327199340,1715893850558,-500.0,0.0001726,2]
[327199341,1715893850567,-500.0,0.0001726,2]
[327199342,1715893850576,-500.0,0.0001726,2]
[327199343,1715893850585,-500.0,0.0001726,2]
[327199344,1715893850594,-500.0,0.0001726,2]
[327199345,1715893850603,-500.0,0.0001726,2]
[327199346,1715893850612,-500.0,0.0001726,2]
[327199347,1715893850621,-541.91,0.0001726,2]
[327199348,1715893850631,-571.96,0.0001726,2]
[327199349,1715893850768,-500.0,0.0001726,2]
[327199350,1715893850778,-1062.97,0.0001726,2]
[327199351,1715893850787,-793.27,0.0001726,2]
[327199352,1715893850796,-500.0,0.0001726,2]
[327199353,1715893850805,-606.48,0.0001726,2]
[327199354,1715893850814,-551.97,0.0001726,2]
[327199355,1715893850823,-1159.47,0.0001726,2]
[327199356,1715893850833,-500.0,0.0001726,2]
[327199357,1715893850841,-500.0,0.0001726,2]
[327199358,1715893850850,-814.06,0.0001726,2]
[327199359,1715893850864,-957.24,0.0001726,2]
[327199360,1715893850873,-665.34,0.0001726,2]
[327199361,1715893850882,-500.0,0.0001726,2]
[327199362,1715893850890,-500.0,0.0001726,2]
[327199363,1715893850900,-1243.34,0.0001726,2]
[327199364,1715893850910,-500.0,0.0001726,2]
[327199365,1715893850920,-1381.92,0.0001726,2]
[327199366,1715893850930,-500.0,0.0001726,2]
[327199367,1715893850944,-500.0,0.0001726,2]
[327199368,1715893850954,-1307.96,0.0001726,2]
[327199369,1715893850964,-500.0,0.0001726,2]
[327199370,1715893850975,-500.0,0.0001726,2]
[327199371,1715893850984,-745.61,0.0001726,2]
[327199372,1715893850993,-500.0,0.0001726,2]
[327199373,1715893851002,-925.69,0.0001726,2]
[327199374,1715893851012,-500.0,0.0001726,2]
[327199375,1715893851022,-1805.2,0.0001726,2]
[327199376,1715893851032,-623.21,0.0001726,2]
[327199377,1715893851043,-1557.57,0.0001726,2]
[327199378,1715893851052,-842.56,0.0001726,2]
[327199379,1715893851064,-500.0,0.0001726,2]
[327199380,1715893851073,-500.0,0.0001726,2]
[327199381,1715893851084,-500.0,0.0001726,2]
[327199382,1715893851093,-500.0,0.0001726,2]
[327199383,1715893851101,-500.0,0.0001726,2]
[327199384,1715893851111,-3080.69,0.0001726,2]
[327199385,1715893851121,-624.55,0.0001726,2]
[327199386,1715893851131,-1436.84,0.0001726,2]
[327199387,1715893851142,-2315.76,0.0001726,2]
[327199388,1715893851154,-1693.51,0.0001726,2]
[327199389,1715893851165,-1089.16,0.0001726,2]
[327199390,1715893851176,-500.0,0.0001726,2]
[327199391,1715893851186,-808.15,0.0001726,2]
[327199392,1715893851196,-767.13,0.0001726,2]
[327199393,1715893851208,-500.0,0.0001726,2]
[327199394,1715893851219,-684.24,0.0001726,2]
[327199395,1715893851230,-500.0,0.0001726,2]
[327199396,1715893851240,-500.0,0.0001726,2]
[327199397,1715893851249,-2645.94,0.0001726,2]
[327199398,1715893851259,-2044.8,0.0001726,2]
[327199399,1715893851268,-500.0,0.0001726,2]
[327199400,1715893851276,-500.0,0.0001726,2]
[327199401,1715893851286,-333.69384338,0.0001726,2]
[327199402,1715893851295,-2921.84,0.0001726,2]
[327199403,1715893851304,-500.0,0.0001726,2]
[327199404,1715893851315,-506.82,0.0001726,2]
[327199405,1715893851326,-1343.18,0.0001726,2]
[327199406,1715893851336,-572.69,0.0001726,2]
[327199407,1715893851345,-500.0,0.0001726,2]
[327199408,1715893851355,-500.0,0.0001726,2]
[327199409,1715893851364,-500.0,0.0001726,2]
[327199410,1715893851372,-500.0,0.0001726,2]
[327199411,1715893851382,-501.91,0.0001726,2]
[327199412,1715893851391,-500.0,0.0001726,2]
[327199413,1715893851400,-500.0,0.0001726,2]
[327199414,1715893851409,-500.0,0.0001726,2]
[327199415,1715893851419,-500.0,0.0001726,2]
[327199416,1715893851428,-1520.41,0.0001726,2]
[327199417,1715893851437,-500.0,0.0001726,2]
[327199418,1715893851446,-500.0,0.0001726,2]
[327199419,1715893851455,-552.26,0.0001726,2]
[327199420,1715893851464,-500.0,0.0001726,2]
[327199421,1715893851473,-500.0,0.0001726,2]
[327199422,1715893851482,-725.64,0.0001726,2]
[327199423,1715893851491,-500.0,0.0001726,2]
[327199424,1715893851500,-500.0,0.0001726,2]
[327199425,1715893851510,-3292.07,0.0001726,2]
[327199426,1715893851519,-500.0,0.0001726,2]
[327199427,1715893851528,-500.0,0.0001726,2]
[327199428,1715893851537,-2149.14,0.0001726,2]
[327199429,1715893851546,-1674.36,0.0001726,2]
[327199430,1715893851556,-500.0,0.0001726,2]
[327199431,1715893851565,-508.85,0.0001726,2]
[327199432,1715893851574,-1326.49,0.0001726,2]
[327199433,1715893851584,-500.0,0.0001726,2]
[327199434,1715893851593,-1774.24,0.0001726,2]
[327199435,1715893851602,-500.0,0.0001726,2]
[327199436,1715893851611,-910.33,0.0001726,2]
[327199437,1715893851620,-2097.89,0.0001726,2]
[327199438,1715893851630,-772.63,0.0001726,2]
[327199439,1715893851640,-500.0,0.0001726,2]
[327199440,1715893851650,-1957.51,0.0001726,2]
[327199441,1715893851662,-612.69,0.0001726,2]
[327199442,1715893851674,-500.0,0.0001726,2]
[327199443,1715893851684,-3016.8,0.0001726,2]
[327199444,1715893851693,-500.0,0.0001726,2]
[327199445,1715893851704,-798.31,0.0001726,2]
[327199446,1715893851714,-500.0,0.0001726,2]
[327199447,1715893851724,-500.0,0.0001726,2]
[327199448,1715893851733,-1056.67,0.0001726,2]
[327199449,1715893851741,-500.0,0.0001726,2]
[327199450,1715893851752,-4331.77,0.0001726,2]
[327199451,1715893851761,-500.0,0.0001726,2]
[327199452,1715893851771,-562.22,0.0001726,2]
[327199453,1715893851781,-500.0,0.0001726,2]
[327199454,1715893851790,-500.0,0.0001726,2]
[327199455,1715893851799,-6805.39,0.0001726,2]
[327199456,1715893851809,-48156.74,0.0001726,2]
[327199457,1715893851818,-500.0,0.0001726,2]
[327199458,1715893851828,-2532.53,0.0001726,2]
[327199459,1715893851837,-585.85642318,0.0001726,2]
[327199460,1715893851846,-5194.73,0.0001726,2]
[327199461,1715893851856,-619.94,0.0001726,2]
[327199462,1715893851868,-500.0,0.0001726,2]
[327199463,1715893851878,-500.0,0.0001726,2]
[327199464,1715893851887,-500.0,0.0001726,2]
[327199465,1715893851896,-500.0,0.0001726,2]
[327199466,1715893851907,-500.0,0.0001726,2]
[327199467,1715893851916,-832.53,0.0001726,2]
[327199468,1715893851926,-1967.03,0.0001726,2]
[327199469,1715893851940,-500.0,0.0001726,2]
[327199470,1715893851950,-11951.4,0.0001726,2]
[327199471,1715893851959,-1852.23,0.0001726,2]
[327199472,1715893851968,-1325.37,0.0001726,2]
[327199473,1715893851977,-4424.41,0.0001726,2]
[327199474,1715893851987,-500.0,0.0001726,2]
[327199475,1715893851996,-696.0,0.0001726,2]
[327199476,1715893852007,-3299.35,0.0001726,2]
[327199477,1715893852016,-2345.26,0.0001726,2]
[327199478,1715893852025,-5713.66,0.0001726,2]
[327199479,1715893852035,-567.85,0.0001726,2]
[327199480,1715893852045,-500.0,0.0001726,2]
[327199481,1715893852054,-11240.46,0.0001726,2]
[327199482,1715893852064,-500.0,0.0001726,2]
[327199483,1715893852074,-2075.36,0.0001726,2]
[327199484,1715893852085,-500.0,0.0001726,2]
[327199485,1715893852094,-727.68,0.0001726,2]
[327199486,1715893852103,-1334.2,0.0001726,2]
[327199487,1715893852113,-1876.86,0.0001726,2]
[327199488,1715893852124,-1323.12,0.0001726,2]
[327199489,1715893852133,-2130.38,0.0001726,2]
[327199490,1715893852143,-500.0,0.0001726,2]
[327199491,1715893852152,-500.0,0.0001726,2]
[327199492,1715893852161,-849.1,0.0001726,2]
[327199493,1715893852170,-767.31,0.0001726,2]
[327199494,1715893852180,-791.95,0.0001726,2]
[327199495,1715893852189,-623.66,0.0001726,2]
[327199496,1715893852199,-2878.76,0.0001726,2]
[327199497,1715893852208,-500.0,0.0001726,2]
[327199498,1715893852217,-1916.2,0.0001726,2]
[327199499,1715893852226,-1356.78,0.0001726,2]
[327199500,1715893852235,-1093.69,0.0001726,2]
[327199501,1715893852244,-4019.74,0.0001726,2]
[327199502,1715893852253,-500.0,0.0001726,2]
[327199503,1715893852262,-500.0,0.0001726,2]
[327199504,1715893852271,-475.5,0.00017336,2]
[327199505,1715893852280,-475.5,0.00017435,2]
[327199506,1715893852290,-500.0,0.00017534,2]
[327199507,1715893852299,-500.0,0.00017534,2]
[327199508,1715893852309,-500.0,0.00017534,2]
[327199509,1715893852318,-500.0,0.00017534,2]
[327199510,1715893852327,-500.0,0.00017534,2]
[327199511,1715893852337,-500.0,0.00017534,2]
[327199512,1715893852346,-775.76,0.00017534,2]
[327199513,1715893852355,-500.0,0.00017534,2]
[327199514,1715893852364,-500.0,0.00017534,2]
[327199515,1715893852373,-500.0,0.00017534,2]
[327199516,1715893852382,-500.0,0.00017534,2]
[327199517,1715893852392,-500.0,0.00017534,2]
[327199518,1715893852401,-500.0,0.00017534,2]
[327199519,1715893852410,-500.0,0.00017534,2]
[327199520,1715893852419,-500.0,0.00017534,2]
[327199521,1715893852429,-541.91,0.00017534,2]
[327199522,1715893852438,-571.96,0.00017534,2]
[327199523,1715893852447,-500.0,0.00017534,2]
[327199524,1715893852456,-1062.97,0.00017534,2]
[327199525,1715893852465,-793.27,0.00017534,2]
[327199526,1715893852474,-500.0,0.00017534,2]
[327199527,1715893852483,-606.48,0.00017534,2]
[327199528,1715893852492,-551.97,0.00017534,2]
[327199529,1715893852501,-1159.47,0.00017534,2]
[327199530,1715893852510,-500.0,0.00017534,2]
[327199531,1715893852519,-500.0,0.00017534,2]
[327199532,1715893852528,-814.06,0.00017534,2]
[327199533,1715893852538,-957.24,0.00017534,2]
[327199534,1715893852547,-665.34,0.00017534,2]
[327199535,1715893852556,-500.0,0.00017534,2]
[327199536,1715893852565,-500.0,0.00017534,2]
[327199537,1715893852574,-1243.34,0.00017534,2]
[327199538,1715893852584,-500.0,0.00017534,2]
[327199539,1715893852593,-1381.92,0.00017534,2]
[327199540,1715893852602,-500.0,0.00017534,2]
[327199541,1715893852613,-500.0,0.00017534,2]
[327199542,1715893852622,-1307.96,0.00017534,2]
[327199543,1715893852632,-500.0,0.00017534,2]
[327199544,1715893852641,-500.0,0.00017534,2]
[327199545,1715893852650,-745.61,0.00017534,2]
[327199546,1715893852659,-500.0,0.00017534,2]
[327199547,1715893852668,-925.69,0.00017534,2]
[327199548,1715893852678,-500.0,0.00017534,2]
[327199549,1715893852687,-1805.2,0.00017534,2]
[327199550,1715893852696,-623.21,0.00017534,2]
[327199551,1715893852705,-1557.57,0.00017534,2]
[327199552,1715893852714,-842.56,0.00017534,2]
[327199553,1715893852723,-500.0,0.00017534,2]
[327199554,1715893852733,-500.0,0.00017534,2]
[327199555,1715893852742,-500.0,0.00017534,2]
[327199556,1715893852751,-500.0,0.00017534,2]
[327199557,1715893852760,-500.0,0.00017534,2]
[327199558,1715893852769,-3080.69,0.00017534,2]
[327199559,1715893852778,-1436.84,0.00017534,2]
[327199560,1715893852787,-624.55,0.00017534,2]
[327199561,1715893852796,-2315.76,0.00017534,2]
[327199562,1715893852805,-1693.51,0.00017534,2]
[327199563,1715893852814,-1089.16,0.00017534,2]
[327199564,1715893852823,-500.0,0.00017534,2]
[327199565,1715893852833,-808.15,0.00017534,2]
[327199566,1715893852842,-767.13,0.00017534,2]
[327199567,1715893852851,-500.0,0.00017534,2]
[327199568,1715893852864,-684.24,0.00017534,2]
[327199569,1715893852873,-500.0,0.00017534,2]
[327199570,1715893852882,-500.0,0.00017534,2]
[327199571,1715893852891,-2645.94,0.00017534,2]
[327199572,1715893852901,-2044.8,0.00017534,2]
[327199573,1715893852910,-500.0,0.00017534,2]
[327199574,1715893852919,-375.81467545,0.00017534,2]
[327199575,1715893852928,-2921.84,0.00017534,2]
[327199576,1715893852937,-500.0,0.00017534,2]
[327199577,1715893852946,-506.82,0.00017534,2]
[327199578,1715893852956,-1343.18,0.00017534,2]
[327199579,1715893852965,-572.69,0.00017534,2]
[327199580,1715893852973,-583.79,0.00017534,2]
[327199581,1715893852982,-500.0,0.00017534,2]
[327199582,1715893852991,-500.0,0.00017534,2]
[327199583,1715893853000,-500.0,0.00017534,2]
[327199584,1715893853009,-501.91,0.00017534,2]
[327199585,1715893853018,-500.0,0.00017534,2]
[327199586,1715893853027,-500.0,0.00017534,2]
[327199587,1715893853036,-500.0,0.00017534,2]
[327199588,1715893853045,-500.0,0.00017534,2]
[327199589,1715893853054,-1520.41,0.00017534,2]
[327199590,1715893853062,-628.41851035,0.00017534,2]